bitfinex/quotes_ETHUSD_20250403
["timestamp","ask_amount","ask_price","bid_price","bid_amount"]
[1743706508927,5.58633,1790.1,1789.8,5.58719]
[1743706509169,5.58707,1789.9,1789.5,5.58792]
[1743706509361,5.58732,1789.8,1789.5,5.58792]
[1743706509933,17.9314,1789.9,1789.5,11.17596]
[1743706510162,9.15014,1789.9,1789.7,5.5875]
[1743706510359,8.35294,1789.9,1789.6,5.58774]
[1743706510574,8.35294,1789.9,1789.5,11.17588]
[1743706510882,11.547,1789.9,1789.5,11.17588]
[1743706511173,5.96,1789.9,1789.6,5.58782]
[1743706511475,8.96,1789.9,1789.8,5.58721]
[1743706511673,8.96,1789.9,1789.7,5.5875]
[1743706511976,8.96,1789.9,1789.8,5.58721]
[1743706512977,5.96,1789.9,1789.8,5.58721]
[1743706513178,8.993,1790.0,1789.9,5.5869]
[1743706513383,5.993,1790.0,1789.8,6.34031]
[1743706513678,5.58702,1789.9,1789.5,5.58797]
[1743706513883,12.32922,1789.9,1789.5,11.176]
[1743706514051,12.32922,1789.9,1789.5,5.58797]
[1743706514452,6.7422,1789.9,1789.5,5.58815]
[1743706514652,5.96,1789.9,1789.7,5.58742]
[1743706514855,5.96,1789.9,1789.6,5.58779]
[1743706515079,8.4184384,1789.9,1789.7,5.58739]
[1743706515384,14.0054584,1789.9,1789.5,5.58787]
[1743706515947,8.4184384,1789.9,1789.6,5.58781]
[1743706516154,5.96,1789.9,1789.7,5.58739]
[1743706516350,8.96,1789.9,1789.8,5.58721]
[1743706516572,5.96,1789.9,1789.8,5.58721]
[1743706516763,5.96,1789.9,1789.8,6.35581]
[1743706516958,46.219,1790.2,1790.0,5.58637]
[1743706516959,40.251,1790.2,1790.0,5.58637]
[1743706517180,40.251,1790.2,1790.1,5.58628]
[1743706517860,3.0,1790.4,1790.2,5.58575]
[1743706518076,9.38243774,1790.4,1790.3,5.58565]
[1743706518881,5.96,1790.5,1790.4,5.58534]
[1743706519181,11.926,1790.5,1790.4,5.58534]
[1743706519763,11.926,1790.5,1790.4,5.47283]
[1743706520690,18.70374,1790.5,1790.2,5.58592]
[1743706520886,25.11668,1790.5,1790.1,6.33977]
[1743706521089,25.11664,1790.5,1790.1,11.92588]
[1743706521294,19.53144,1790.5,1790.2,5.58596]
[1743706521492,13.9463,1790.5,1790.2,11.17176]
[1743706521694,13.17513451,1790.5,1790.2,11.17176]
[1743706521861,6.38143451,1790.5,1790.4,5.58534]
[1743706522062,12.33743451,1790.5,1790.3,5.58553]
[1743706522260,12.33743451,1790.5,1790.3,11.17108]
[1743706522470,5.96,1790.5,1790.4,5.58534]
[1743706522859,5.96,1790.5,1790.3,11.17105]
[1743706523087,5.96,1790.5,1790.3,5.58552]
[1743706523274,5.96,1790.5,1790.3,11.17106]
[1743706523688,5.96,1790.5,1790.3,11.17104]
[1743706524566,5.96,1790.5,1790.3,5.58549]
[1743706525498,5.96,1790.5,1790.3,11.17103]
[1743706525698,5.96,1790.5,1790.3,5.58549]
[1743706525865,5.96,1790.5,1790.2,5.58573]
[1743706526072,5.96,1790.5,1790.3,5.58563]
[1743706527175,5.96,1790.5,1790.3,5.58555]
[1743706527377,5.96,1790.5,1790.4,5.58534]
[1743706528310,5.96,1790.5,1790.3,11.17109]
[1743706528609,5.96,1790.5,1790.3,5.58554]
[1743706529107,5.96,1790.5,1790.3,11.17107]
[1743706529268,5.96,1790.5,1790.4,5.58534]
[1743706529680,9.3402901,1790.6,1790.3,5.58559]
[1743706529885,9.3402901,1790.6,1790.4,5.58524]
[1743706530288,9.3402901,1790.6,1790.3,5.58559]
[1743706530486,14.9251601,1790.6,1790.3,5.58556]
[1743706530778,14.9251601,1790.6,1790.2,5.58586]
[1743706530979,16.97611911,1790.6,1790.3,5.58562]
[1743706531171,21.77259534,1790.6,1790.1,0.7536]
[1743706531379,5.58579,1790.3,1789.9,5.58686]
[1743706531592,5.58639,1790.1,1789.8,5.58716]
[1743706531776,11.49997,1790.2,1789.8,5.58712]
[1743706531977,5.914,1790.2,1790.0,5.58651]
[1743706532174,5.914,1790.2,1790.0,5.58647]
[1743706532374,5.914,1790.2,1790.1,5.58628]
[1743706532779,5.914,1790.2,1790.0,6.35505]
[1743706533013,5.914,1790.2,1789.9,5.58679]
[1743706533313,5.914,1790.2,1790.0,5.58633]
[1743706533613,5.914,1790.2,1790.1,5.58628]
[1743706533812,6.6998,1790.2,1789.8,0.7686]
[1743706533990,11.17299,1790.1,1789.7,5.58734]
[1743706534184,5.58663,1790.0,1789.7,5.58734]
[1743706534391,5.58663,1790.0,1789.6,6.35634]
[1743706534590,5.58663,1790.0,1789.6,6.35633]
[1743706534793,5.58692,1789.9,1789.6,5.58773]
[1743706534995,5.58669,1790.0,1789.6,5.5877]
[1743706535202,7.15285718,1790.0,1789.6,5.5877]
[1743706535519,5.587,1789.9,1789.5,5.5881]
[1743706535702,6.38451,1789.8,1789.5,5.5881]
[1743706535906,12.29351,1789.8,1789.5,0.1747272]
[1743706536103,5.58753,1789.7,1789.5,0.1747272]
[1743706536412,11.17526,1789.7,1789.5,0.1747272]
[1743706536611,7.971634,1789.7,1789.5,0.1747272]
[1743706536813,5.58753,1789.7,1789.5,0.1747272]
[1743706537018,5.58753,1789.7,1789.4,5.58842]
[1743706537525,23.84091,1789.8,1789.4,5.5883]
[1743706537687,18.25353,1789.8,1789.2,0.94334712]
[1743706537886,18.25353,1789.8,1789.4,5.58823]
[1743706538188,20.63758,1789.8,1789.4,5.58823]
[1743706538399,12.6662,1789.8,1789.2,6.41354462]
[1743706538718,12.6662,1789.8,1789.5,5.58801]
[1743706538919,12.6662,1789.8,1789.6,5.58772]
[1743706539116,12.6662,1789.8,1789.6,11.17544]
[1743706539117,11.869,1789.8,1789.6,11.17544]
[1743706539290,11.869,1789.8,1789.6,5.58772]
[1743706541125,11.869,1789.8,1789.6,11.17541]
[1743706541422,11.869,1789.8,1789.6,11.17542]
[1743706541620,5.96,1789.8,1789.7,5.58752]
[1743706542187,5.96,1789.8,1789.6,6.705232]
[1743706542391,5.96,1789.8,1789.7,5.58752]
[1743706542609,3.0,1789.9,1789.4,6.35704]
[1743706542811,3.0,1789.9,1789.1,5.58926]
[1743706542812,6.34739,1789.4,1789.1,5.58926]
[1743706542991,12.24739,1789.4,1789.1,5.58926]
[1743706543192,12.24739,1789.4,1789.0,11.17921]
[1743706543391,12.24739,1789.4,1789.0,11.17911]
[1743706543610,6.6589,1789.4,1789.1,5.58939]
[1743706543815,6.6589,1789.4,1789.2,5.58895]
[1743706544026,6.6589,1789.4,1789.2,11.17787]
[1743706544398,8.9,1789.4,1789.3,5.58877]
[1743706544601,5.9,1789.4,1789.3,5.58877]
[1743706546118,5.9,1789.4,1789.2,5.58892]
[1743706546326,5.9,1789.4,1789.2,11.17786]
[1743706546509,13.44278,1789.4,1789.0,5.58961]
[1743706546723,13.44278,1789.4,1789.0,11.17923]
[1743706546927,13.44278,1789.4,1789.0,5.58961]
[1743706547127,13.44278,1789.4,1789.0,11.17922]
[1743706547530,5.58885,1789.3,1789.0,11.17921]
[1743706547732,13.44275,1789.4,1789.0,11.17921]
[1743706548023,13.44274,1789.4,1789.0,5.5896]
[1743706548217,19.03142,1789.4,1789.0,11.17916]
[1743706548412,11.54879,1789.3,1789.0,5.58956]
[1743706548617,11.96413419,1789.3,1789.0,5.58956]
[1743706549226,17.55312419,1789.3,1788.9,11.17992]
[1743706549392,11.96413419,1789.3,1789.0,5.58968]
[1743706549793,5.58987,1789.0,1788.5,0.7686]
[1743706549999,0.7568,1788.8,1788.5,5.59111]
[1743706550310,5.885,1788.9,1788.8,5.59016]
[1743706550712,5.885,1788.9,1788.7,5.59052]
[1743706551027,5.885,1788.9,1788.7,5.59048]
[1743706551245,5.885,1788.9,1788.6,11.18146]
[1743706551544,5.885,1788.9,1788.7,5.59063]
[1743706552317,5.885,1788.9,1788.6,5.59066]
[1743706552639,25.068931,1788.9,1788.5,11.18229]
[1743706552805,11.845,1788.9,1788.3,6.36048]
[1743706553012,11.845,1788.9,1788.6,5.59072]
[1743706553211,17.43516,1788.9,1788.6,5.59072]
[1743706553739,17.43516,1788.9,1788.5,5.59122]
[1743706553941,17.43516,1788.9,1788.6,5.59091]
[1743706554265,23.02547,1788.9,1788.5,5.59122]
[1743706554456,5.59045,1788.8,1788.5,5.59122]
[1743706554655,0.7699,1788.7,1788.4,5.59158]
[1743706554865,6.7299,1788.7,1788.2,5.59216]
[1743706555017,5.59121,1788.6,1788.2,11.18418]
[1743706555217,5.59121,1788.6,1788.2,5.59208]
[1743706555218,0.7699,1788.4,1788.2,5.59208]
[1743706555432,6.36149,1788.4,1788.1,5.64238]
[1743706555819,6.36149,1788.4,1788.1,0.05]
[1743706555820,5.59192,1788.3,1788.1,0.05]
[1743706556022,19.696271,1788.4,1788.1,0.05]
[1743706556324,8.512881,1788.4,1788.1,5.6424]
[1743706556538,6.7299,1788.4,1788.1,5.6424]
[1743706556817,12.74239431,1788.4,1788.1,5.6424]
[1743706557015,12.74249431,1788.4,1788.1,5.6424]
[1743706558163,12.74249431,1788.4,1788.1,0.05]
[1743706558371,12.74249431,1788.4,1788.1,5.64251]
[1743706558724,7.15078431,1788.4,1788.1,5.64243]
[1743706559064,12.74251431,1788.4,1788.1,0.05]
[1743706559224,7.15078431,1788.4,1788.1,11.23489]
[1743706559562,7.15078431,1788.4,1788.2,5.59219]
[1743706560250,18.33416431,1788.4,1788.1,0.05]
[1743706560463,0.02914476,1788.3,1788.1,5.64246]
[1743706560824,0.02914476,1788.3,1788.2,0.10591614]
[1743706561030,0.02914476,1788.3,1788.1,5.64246]
[1743706561236,0.02914476,1788.3,1788.2,0.10950211]
[1743706561435,0.02914476,1788.3,1788.1,5.64252]
[1743706561621,0.02914476,1788.3,1788.2,0.10950211]
[1743706561818,0.02914476,1788.3,1788.1,5.64237]
[1743706562118,0.02914476,1788.3,1788.2,5.70171211]
[1743706563859,0.02914476,1788.3,1788.2,0.10950211]
[1743706564059,0.02914476,1788.3,1788.1,5.64237]
[1743706564262,0.02914476,1788.3,1788.2,0.10927436]
[1743706564444,0.02914476,1788.3,1788.1,5.64237]
[1743706564644,0.02914476,1788.3,1788.2,0.10927436]
[1743706564872,0.02914476,1788.3,1788.1,5.64237]
[1743706564873,9.26204767,1788.3,1788.1,0.05]
[1743706565157,3.02914476,1788.3,1788.2,0.10955905]
[1743706565330,3.02914476,1788.3,1788.2,5.70176905]
[1743706565534,3.02914476,1788.3,1788.2,5.59221]
[1743706565735,3.02914476,1788.3,1788.2,5.70176905]
[1743706565936,0.02914476,1788.3,1788.2,5.70176905]
[1743706566146,0.02914476,1788.3,1788.2,7.60477996]
[1743706567263,0.02914476,1788.3,1788.2,6.47036905]
[1743706567668,0.02914476,1788.3,1788.2,6.52628783]
[1743706567966,0.02914476,1788.3,1788.2,6.47036905]
[1743706568543,0.02914476,1788.3,1788.2,6.52628376]
[1743706569073,0.02914476,1788.3,1788.2,6.47036905]
[1743706569445,0.02914476,1788.3,1788.2,6.52628507]
[1743706569645,0.02914476,1788.3,1788.2,7.74314758]
[1743706569849,0.02914476,1788.3,1788.2,7.68723156]
[1743706570355,0.02914476,1788.3,1788.2,6.47036905]
[1743706570564,0.02914476,1788.3,1788.2,5.70176905]
[1743706570877,0.02914476,1788.3,1788.1,0.05]
[1743706571042,5.87514476,1788.3,1788.1,5.6424]
[1743706571449,5.87514476,1788.3,1788.1,0.05]
[1743706571978,11.46726476,1788.3,1788.1,0.05]
[1743706572149,8.33483427,1788.3,1788.1,0.05]
[1743706572981,10.39836035,1788.2,1788.1,0.05]
[1743706573191,41.02314335,1788.2,1788.1,0.05]
[1743706573396,41.05228811,1788.2,1788.1,0.05]
[1743706573688,45.82401485,1788.2,1788.1,0.05]
[1743706574091,24.96453185,1788.2,1788.1,0.05]
[1743706574297,45.82401485,1788.2,1788.1,0.05]
[1743706575664,46.34760342,1788.2,1788.1,0.05]
[1743706578569,46.89760342,1788.2,1788.1,0.05]
[1743706580180,46.34760342,1788.2,1788.1,0.05]
[1743706580583,46.89760342,1788.2,1788.1,0.05]
[1743706581388,46.89760342,1788.2,1788.1,1e-05]
[1743706581589,5.5942,1787.6,1787.4,0.21266252]
[1743706581785,5.816,1787.5,1787.4,0.21266252]
[1743706581990,5.84514476,1787.5,1787.4,0.03772761]
[1743706582574,9.54884476,1787.5,1787.4,0.03772761]
[1743706582778,5.84514476,1787.5,1787.4,0.03772761]
[1743706583406,15.53589876,1787.5,1787.4,0.03772761]
[1743706583619,18.49626486,1787.5,1787.4,0.03772761]
[1743706584709,12.90186486,1787.5,1787.4,0.03772761]
[1743706585005,6.26483644,1787.5,1787.4,5.63243761]
[1743706585172,0.44883644,1787.5,1787.4,5.63243761]
[1743706585376,0.02914476,1787.5,1787.4,5.63243761]
[1743706585580,0.02914476,1787.5,1787.4,6.40103761]
[1743706587619,0.02914476,1787.5,1787.4,6.45698088]
[1743706587795,0.02914476,1787.5,1787.4,7.66216797]
[1743706587997,0.02914476,1787.5,1787.4,7.6062247]
[1743706588403,0.02914476,1787.5,1787.4,6.40103761]
[1743706588581,0.02914476,1787.5,1787.4,0.03772761]
[1743706589397,5.62354476,1787.5,1787.4,0.03772761]
[1743706590324,23.33849576,1787.5,1787.4,0.03772761]
[1743706590499,18.71207376,1787.5,1787.4,0.03772761]
[1743706590687,21.85570994,1787.5,1787.4,0.03772761]
[1743706590887,17.31986094,1787.5,1787.4,0.03772761]
[1743706591088,3.17278094,1787.5,1787.4,0.03772761]
[1743706591322,9.76664676,1787.5,1787.4,0.03772761]
[1743706591623,7.70087276,1787.5,1787.4,0.03772761]
[1743706592095,5.62354476,1787.5,1787.4,0.03772761]
[1743706592295,7.70067276,1787.5,1787.4,0.03772761]
[1743706592507,8.70141876,1787.5,1787.4,0.03772761]
[1743706592707,10.84398944,1787.5,1787.4,0.03772761]
[1743706592888,2.17171544,1787.5,1787.4,0.03772761]
[1743706593088,9.45103276,1787.5,1787.4,0.03772761]
[1743706594392,3.85663276,1787.5,1787.4,0.03772761]
[1743706594592,9.45103276,1787.5,1787.4,0.03772761]
[1743706594805,3.85663276,1787.5,1787.4,0.03772761]
[1743706595016,9.45103276,1787.5,1787.4,0.03772761]
[1743706595296,17.62856484,1787.5,1787.4,0.03772761]
[1743706595497,8.20667684,1787.5,1787.4,0.03772761]
[1743706595700,13.80107684,1787.5,1787.4,0.03772761]
[1743706595892,34.66055984,1787.5,1787.4,0.03772761]
[1743706596097,17.81058984,1787.5,1787.4,0.03772761]
[1743706596294,13.80107684,1787.5,1787.4,0.03772761]
[1743706596498,15.95483184,1787.5,1787.4,0.03772761]
[1743706596729,13.73729976,1787.5,1787.4,0.03772761]
[1743706596900,5.98914476,1787.5,1787.4,0.03772761]
[1743706597101,11.79814476,1787.5,1787.4,0.03772761]
[1743706598333,19.71568276,1787.5,1787.4,0.03772761]
[1743706598630,17.39254476,1787.5,1787.4,0.03772761]
[1743706599132,11.79814476,1787.5,1787.4,0.03772761]
[1743706600119,0.02914476,1787.5,1787.4,5.63243761]
[1743706600432,0.02914476,1787.5,1787.4,6.75516237]
[1743706600821,0.02914476,1787.5,1787.4,5.63243761]
[1743706601005,0.02914476,1787.5,1787.4,0.03772761]
[1743706601517,0.02914476,1787.5,1787.4,5.63243761]
[1743706601718,0.02914476,1787.5,1787.4,0.03772761]
[1743706601919,0.02914476,1787.5,1787.4,5.63243761]
[1743706602129,0.02914476,1787.5,1787.4,6.75516237]
[1743706602330,0.02914476,1787.5,1787.4,0.03772761]
[1743706603549,5.62354476,1787.5,1787.4,0.03772761]
[1743706604038,5.98914476,1787.5,1787.4,0.03772761]
[1743706604404,15.20941676,1787.5,1787.4,0.03772761]
[1743706604633,13.70485324,1787.5,1787.4,0.03772761]
[1743706604830,16.70485324,1787.5,1787.4,0.03772761]
[1743706605029,23.42396324,1787.5,1787.4,0.03772761]
[1743706605211,18.94846324,1787.5,1787.4,0.03772761]
[1743706606503,19.73556324,1787.5,1787.4,0.03772761]
[1743706606705,23.08056324,1787.5,1787.4,0.03772761]
[1743706606916,23.63056324,1787.5,1787.4,0.03772761]
[1743706607111,19.73556324,1787.5,1787.4,0.03772761]
[1743706609539,20.39254476,1787.5,1787.4,0.03772761]
[1743706610710,23.96816076,1787.5,1787.4,0.03772761]
[1743706611034,18.37376076,1787.5,1787.4,0.03772761]
[1743706611249,14.79814476,1787.5,1787.4,0.03772761]
[1743706612237,20.39254476,1787.5,1787.4,0.03772761]
[1743706612436,27.84469857,1787.5,1787.4,0.03772761]
[1743706612740,31.81271557,1787.5,1787.4,0.03772761]
[1743706614503,26.00371557,1787.5,1787.4,0.03772761]
[1743706614708,3.02914476,1787.5,1787.4,5.63243761]
[1743706614936,3.02914476,1787.5,1787.4,0.03772761]
[1743706615511,8.83814476,1787.5,1787.4,0.03772761]
[1743706616825,0.02914476,1787.5,1787.4,5.63243761]
[1743706618653,0.02914476,1787.5,1787.4,0.03772761]
[1743706618815,10.3344867,1787.5,1787.4,0.03772761]
[1743706619314,20.0485867,1787.5,1787.4,0.03772761]
[1743706621351,17.0034357,1787.5,1787.4,0.03772761]
[1743706621533,32.6556727,1787.5,1787.4,0.03772761]
[1743706622117,31.6026807,1787.5,1787.4,0.03772761]
[1743706622936,30.3582427,1787.5,1787.4,0.03772761]
[1743706623115,18.69664476,1787.5,1787.4,0.03772761]
[1743706623315,18.69664476,1787.5,1787.4,0.14986532]
[1743706623528,14.58354476,1787.5,1787.4,0.03772761]
[1743706623738,8.98914476,1787.5,1787.4,0.03772761]
[1743706623954,8.98914476,1787.5,1787.4,0.14986532]
[1743706624359,3.02914476,1787.5,1787.4,0.14986532]
[1743706626068,0.02914476,1787.5,1787.4,0.14986532]
[1743706626574,1.21367145,1787.5,1787.4,0.14986532]
[1743706626741,9.82342145,1787.5,1787.4,0.14986532]
[1743706626924,9.82342145,1787.5,1787.4,0.03772761]
[1743706627673,15.78342145,1787.5,1787.4,0.03772761]
[1743706627878,5.98914476,1787.5,1787.4,0.03772761]
[1743706628081,0.02914476,1787.5,1787.4,6.40103761]
[1743706628364,0.02914476,1787.5,1787.4,6.51317532]
[1743706629453,0.02914476,1787.5,1787.4,6.56911827]
[1743706629624,0.02914476,1787.5,1787.4,6.51317532]
[1743706630463,0.02914476,1787.5,1787.4,7.77992197]
[1743706630677,0.02914476,1787.5,1787.4,7.72398185]
[1743706632335,0.02914476,1787.5,1787.4,7.89891879]
[1743706633548,0.02914476,1787.5,1787.4,6.68811226]
[1743706634238,0.02914476,1787.5,1787.4,6.74405079]
[1743706634451,0.02914476,1787.5,1787.4,6.68811226]
[1743706634835,0.02914476,1787.5,1787.4,6.74404486]
[1743706635469,0.02914476,1787.5,1787.4,6.68811226]
[1743706635654,0.02914476,1787.5,1787.4,8.53183411]
[1743706635835,0.02914476,1787.5,1787.4,8.47590149]
[1743706636163,0.02914476,1787.5,1787.4,8.5318341]
[1743706636669,0.02914476,1787.5,1787.4,8.47590149]
[1743706638868,0.02914476,1787.5,1787.4,6.68811226]
[1743706639038,0.02914476,1787.5,1787.4,6.86303741]
[1743706640034,0.02914476,1787.5,1787.4,0.49972741]
[1743706640697,0.02914476,1787.5,1787.4,5.91950047]
[1743706640867,0.02914476,1787.5,1787.4,5.74457532]
[1743706641281,0.02914476,1787.5,1787.4,0.14986532]
[1743706641569,0.02914476,1787.5,1787.4,5.74457532]
[1743706641871,0.02914476,1787.5,1787.4,0.14986532]
[1743706642276,0.02914476,1787.5,1787.4,6.31905185]
[1743706642840,0.02914476,1787.5,1787.4,7.08765185]
[1743706643272,0.02914476,1787.5,1787.4,7.63765185]
[1743706643458,0.02914476,1787.5,1787.4,7.26258543]
[1743706646061,0.02914476,1787.5,1787.4,7.31852115]
[1743706646442,0.02914476,1787.5,1787.4,7.31851932]
[1743706646643,0.02914476,1787.5,1787.4,7.26258543]
[1743706649993,0.02914476,1787.5,1787.4,7.81258543]
[1743706651478,0.02914476,1787.5,1787.4,7.43749974]
[1743706652152,0.02914476,1787.5,1787.4,7.4934327]
[1743706652468,0.02914476,1787.5,1787.4,7.43749974]
[1743706652845,0.02914476,1787.5,1787.4,7.49343271]
[1743706654582,0.02914476,1787.5,1787.4,7.43749974]
[1743706657299,0.02914476,1787.5,1787.4,7.49343278]
[1743706657491,0.02914476,1787.5,1787.4,7.43749974]
[1743706657990,0.02914476,1787.5,1787.4,7.49343277]
[1743706658168,0.02914476,1787.5,1787.4,7.43749974]
[1743706659293,0.02914476,1787.5,1787.4,6.09442321]
[1743706660587,0.02914476,1787.5,1787.4,0.49971321]
[1743706661062,0.02914476,1787.5,1787.4,6.09442321]
[1743706661263,0.02914476,1787.5,1787.4,0.49971321]
[1743706661488,8.62354476,1787.5,1787.4,0.49971321]
[1743706661694,5.12449124,1787.5,1787.4,0.3875755]
[1743706661873,5.12449124,1787.5,1787.4,5.9822855]
[1743706661874,0.02914476,1787.5,1787.4,5.9822855]
[1743706662075,0.02914476,1787.5,1787.4,6.03822653]
[1743706662275,0.02914476,1787.5,1787.4,5.9822855]
[1743706662475,0.02914476,1787.5,1787.4,5.80737119]
[1743706662797,0.02914476,1787.5,1787.4,6.94759731]
[1743706663997,0.02914476,1787.5,1787.4,7.00353594]
[1743706664217,0.02914476,1787.5,1787.4,7.17845025]
[1743706664564,0.02914476,1787.5,1787.4,7.12251162]
[1743706667481,0.02914476,1787.5,1787.4,5.9822855]
[1743706668183,0.02914476,1787.5,1787.4,6.03822417]
[1743706669471,0.02914476,1787.5,1787.4,5.9822855]
[1743706669666,0.02914476,1787.5,1787.4,6.03821914]
[1743706669869,0.02914476,1787.5,1787.4,5.9822855]
[1743706670103,0.02914476,1787.5,1787.4,7.75542572]
[1743706670300,0.02914476,1787.5,1787.4,7.69949205]
[1743706670508,0.02914476,1787.5,1787.4,8.52402572]
[1743706671172,0.02914476,1787.5,1787.4,9.35388862]
[1743706671524,0.02914476,1787.5,1787.4,9.29795495]
[1743706673090,0.02914476,1787.5,1787.4,9.35388151]
[1743706673406,4.76e-06,1787.5,1787.4,9.29795495]
[1743706674107,4.76e-06,1787.5,1787.4,8.84317774]
[1743706674484,4.76e-06,1787.5,1787.4,9.29792666]
[1743706674980,4.76e-06,1787.5,1787.4,9.35384948]
[1743706675180,4.76e-06,1787.5,1787.4,9.29792666]
[1743706675800,4.76e-06,1787.5,1787.4,12.35384947]
[1743706676000,4.76e-06,1787.5,1787.4,12.29792666]
[1743706677317,0.7882,1788.3,1788.2,5.59221]
[1743706678405,0.80182757,1788.3,1788.2,5.59221]
[1743706682018,0.01362757,1788.3,1788.2,6.71067]
[1743706684519,7.57e-06,1788.3,1788.2,6.71067]
[1743706684718,7.57e-06,1788.3,1788.2,15.12911327]
[1743706684899,7.57e-06,1788.3,1788.2,15.84180253]
[1743706685498,7.57e-06,1788.3,1788.2,16.29631141]
[1743706685703,7.57e-06,1788.3,1788.2,16.4711237]
[1743706686503,7.57e-06,1788.3,1788.2,8.65859117]
[1743706686800,7.57e-06,1788.3,1788.2,13.52702797]
[1743706686990,7.57e-06,1788.3,1788.2,13.4711237]
[1743706687623,7.57e-06,1788.3,1788.2,13.75082131]
[1743706687984,7.57e-06,1788.3,1788.2,8.93828878]
[1743706688786,7.57e-06,1788.3,1788.2,13.80672522]
[1743706688992,7.57e-06,1788.3,1788.2,13.75082131]
[1743706689887,7.57e-06,1788.3,1788.2,8.93828878]
[1743706690304,7.57e-06,1788.3,1788.2,8.99419022]
[1743706690523,7.57e-06,1788.3,1788.2,8.71449261]
[1743706690737,7.57e-06,1788.3,1788.2,8.65859117]
[1743706690924,7.57e-06,1788.3,1788.2,8.71449261]
[1743706691126,7.57e-06,1788.3,1788.2,7.33999117]
[1743706691431,0.78290757,1788.3,1788.2,6.22153117]
[1743706691723,0.78290757,1788.3,1788.2,5.76702229]
[1743706692219,0.78290757,1788.3,1788.2,5.59221]
[1743706693499,7.57e-06,1788.3,1788.2,5.59221]
[1743706693711,7.57e-06,1788.3,1788.2,6.76658018]
[1743706693912,7.57e-06,1788.3,1788.2,7.26067]
[1743706694835,7.57e-06,1788.3,1788.2,6.71067]
[1743706695045,7.57e-06,1788.3,1788.2,5.59221]
[1743706696498,0.75080757,1788.3,1788.2,5.59221]
[1743706698835,0.71080757,1788.3,1788.2,5.59221]
[1743706699037,0.73994995,1788.3,1788.2,5.59221]
[1743706699760,0.73994995,1788.3,1788.0,5.59272]
[1743706700031,0.73994995,1788.3,1787.9,5.59308]
[1743706700032,5.59222,1788.2,1787.9,5.59308]
[1743706700236,7.29335924,1788.2,1787.9,5.59308]
[1743706700402,0.02914238,1788.1,1788.0,5.59284]
[1743706701938,0.83574238,1788.1,1788.0,5.59284]
[1743706702349,0.83574238,1788.1,1787.9,5.59303]
[1743706702638,0.83574238,1788.1,1787.9,5.59301]
[1743706703334,0.83574238,1788.1,1788.0,5.59284]
[1743706710160,0.83574238,1788.1,1787.9,5.59301]
[1743706710825,0.83574238,1788.1,1788.0,5.59284]
[1743706711543,0.83574238,1788.1,1787.9,5.59301]
[1743706714420,0.83574238,1788.1,1788.0,5.59284]
[1743706714839,0.83574238,1788.1,1787.9,5.59301]
[1743706715045,1.70056987,1788.1,1787.9,5.59302]
[1743706715555,1.70056987,1788.1,1788.0,5.59284]
[1743706715853,1.70056987,1788.1,1787.9,11.18605]
[1743706716154,0.83574238,1788.1,1787.9,11.18605]
[1743706716454,0.83574238,1788.1,1787.9,5.59302]
[1743706717538,0.83574238,1788.1,1787.8,11.18677]
[1743706718148,0.83574238,1788.1,1787.9,5.59314]
[1743706719654,0.83574238,1788.1,1787.8,5.59336]
[1743706719855,0.83574238,1788.1,1787.9,5.59311]
[1743706721159,0.83574238,1788.1,1787.9,5.59304]
[1743706722955,0.83574238,1788.1,1787.9,11.18606]
[1743706723138,0.83574238,1788.1,1787.9,5.59302]
[1743706723560,0.81574238,1788.1,1787.9,5.59302]
[1743706724863,0.81574238,1788.1,1787.9,11.18608]
[1743706725062,0.81574238,1788.1,1787.9,5.59302]
[1743706725661,0.81574238,1788.1,1787.9,11.18606]
[1743706725836,0.81574238,1788.1,1787.9,5.59301]
[1743706726635,5.59346,1787.8,1787.7,0.17489797]
[1743706726941,11.18199253,1787.8,1787.7,0.17489797]
[1743706727164,0.78514238,1787.8,1787.7,0.17489797]
[1743706727345,0.00914238,1787.8,1787.7,5.76866797]
[1743706728059,0.00914238,1787.8,1787.7,5.59377]
[1743706728362,0.00914238,1787.8,1787.7,7.47482756]
[1743706729567,0.00914238,1787.8,1787.7,7.75466323]
[1743706729774,0.00914238,1787.8,1787.7,8.03445065]
[1743706730837,0.00914238,1787.8,1787.7,8.20934547]
[1743706731037,0.00914238,1787.8,1787.7,8.26526948]
[1743706731343,0.00914238,1787.8,1787.7,8.20934547]
[1743706734370,0.00914238,1787.8,1787.7,7.9295098]
[1743706734742,0.00914238,1787.8,1787.7,8.6987098]
[1743706734942,0.00914238,1787.8,1787.7,9.2487098]
[1743706735478,0.00914238,1787.8,1787.7,8.6987098]
[1743706735981,0.00914238,1787.8,1787.7,8.75463431]
[1743706736644,0.00914238,1787.8,1787.7,9.5844572]
[1743706737045,2.38e-06,1787.8,1787.7,9.5844572]
[1743706737265,0.7643,1788.4,1788.3,5.5919]
[1743706737573,16.36322253,1788.7,1788.3,5.5919]
[1743706737574,5.96,1788.7,1788.6,5.59096]
[1743706737956,5.96,1788.7,1788.5,5.59114]
[1743706738148,5.96,1788.7,1788.5,11.1823]
[1743706738652,5.96,1788.7,1788.6,5.59096]
[1743706739370,5.96,1788.7,1788.5,5.59114]
[1743706739879,5.96,1788.7,1788.5,5.59113]
[1743706740379,0.02914477,1788.6,1788.5,5.59113]
[1743706740580,0.02914477,1788.6,1788.5,5.64703603]
[1743706740883,0.02914477,1788.6,1788.5,5.59113]
[1743706741271,0.02914477,1788.6,1788.5,5.64703603]
[1743706741580,0.02914477,1788.6,1788.5,6.7149886]
[1743706742682,0.02914477,1788.6,1788.5,6.77089399]
[1743706742881,0.02914477,1788.6,1788.5,6.7149886]
[1743706743173,0.02914477,1788.6,1788.5,6.770894]
[1743706743382,0.02914477,1788.6,1788.5,6.7149886]
[1743706744180,0.02914477,1788.6,1788.5,6.77089401]
[1743706744547,0.02914477,1788.6,1788.5,6.7149886]
[1743706744753,0.02914477,1788.6,1788.5,8.07709402]
[1743706744987,0.02914477,1788.6,1788.5,8.0211886]
[1743706745947,0.02914477,1788.6,1788.5,8.19599552]
[1743706746680,0.02914477,1788.6,1788.5,8.25188727]
[1743706746850,4.77e-06,1788.6,1788.5,13.23921367]
[1743706747054,6.5951,1789.3,1789.1,5.58925]
[1743706747254,0.8041,1789.3,1789.1,5.58925]
[1743706747680,0.8041,1789.3,1789.2,5.58909]
[1743706747864,41.0435,1789.5,1789.2,11.17803]
[1743706748558,41.0435,1789.5,1789.3,5.58876]